fUST/lending_fUST_20250131
["ID","MTS","AMOUNT","RATE_DAILY","PERIOD"]
[350976096,1738261834858,-500.0,0.00016438,2]
[350976097,1738261834868,-501.03498578,0.00016438,2]
[350976098,1738261834877,-500.0,0.00016438,2]
[350976099,1738261834887,-500.0,0.00016438,2]
[350976100,1738261834897,-500.0,0.00016438,2]
[350976101,1738261834906,-500.0,0.00016438,2]
[350976102,1738261834916,-500.0,0.00016438,2]
[350976103,1738261834925,-500.0,0.00016438,2]
[350976104,1738261834935,-500.0,0.00016438,2]
[350976105,1738261834944,-501.78743427,0.00016438,2]
[350976106,1738261834953,-500.0,0.00016438,2]
[350976107,1738261834963,-500.0,0.00016438,2]
[350976108,1738261834972,-500.0,0.00016438,2]
[350976109,1738261834982,-500.0,0.00016438,2]
[350976110,1738261834991,-500.0,0.00016438,2]
[350976111,1738261835001,-500.0,0.00016438,2]
[350976112,1738261835011,-535.2,0.00016438,2]
[350976113,1738261835020,-500.0,0.00016438,2]
[350976114,1738261835029,-500.0,0.00016438,2]
[350976115,1738261835038,-500.0,0.00016438,2]
[350976116,1738261835048,-506.01513147,0.00016438,2]
[350976117,1738261835057,-581.86330187,0.00016438,2]
[350976118,1738261835066,-337.31,0.00016438,2]
[350976119,1738261835076,-500.0,0.00016438,2]
[350976120,1738261835086,-500.0,0.00016438,2]
[350976121,1738261835096,-500.0,0.00016438,2]
[350976122,1738261835106,-500.0,0.00016438,2]
[350976123,1738261835116,-500.0,0.00016438,2]
[350976124,1738261835126,-539.03,0.00016438,2]
[350976125,1738261835135,-500.0,0.00016438,2]
[350976126,1738261835145,-500.0,0.00016438,2]
[350976127,1738261835154,-500.0,0.00016438,2]
[350976128,1738261835163,-552.65521867,0.00016438,2]
[350976129,1738261835172,-500.0,0.00016438,2]
[350976130,1738261835182,-500.0,0.00016438,2]
[350976131,1738261835191,-1483.68,0.00016438,2]
[350976132,1738261835200,-500.0,0.00016438,2]
[350976133,1738261835209,-500.0,0.00016438,2]
[350976134,1738261835219,-500.0,0.00016438,2]
[350976135,1738261835228,-500.0,0.00016438,2]
[350976136,1738261835238,-500.0,0.00016438,2]
[350976137,1738261835247,-500.0,0.00016438,2]
[350976138,1738261835257,-500.98,0.00016438,2]
[350976139,1738261835266,-500.0,0.00016438,2]
[350976140,1738261835276,-500.0,0.00016438,2]
[350976141,1738261835285,-500.0,0.00016438,2]
[350976142,1738261835295,-504.94870733,0.00016438,2]
[350976143,1738261835304,-500.0,0.00016438,2]
[350976144,1738261835314,-500.0,0.00016438,2]
[350976145,1738261835323,-500.0,0.00016438,2]
[350976146,1738261835332,-500.0,0.00016438,2]
[350976147,1738261835341,-500.0,0.00016438,2]
[350976148,1738261835350,-547.36,0.00016438,2]
[350976149,1738261835359,-500.0,0.00016438,2]
[350976150,1738261835369,-500.0,0.00016438,2]
[350976151,1738261835378,-500.0,0.00016438,2]
[350976152,1738261835387,-500.0,0.00016473,2]
[350976153,1738261835397,-500.0,0.00016473,2]
[350976154,1738261835406,-500.0,0.00016473,2]
[350976155,1738261835416,-500.0,0.00016574,2]
[350976156,1738261835425,-500.0,0.00016574,2]
[350976157,1738261835434,-500.0,0.00016574,2]
[350976158,1738261835444,-500.0,0.00016575,2]
[350976159,1738261835453,-500.0,0.00016575,2]
[350976160,1738261835462,-500.0,0.00016575,2]
[350976161,1738261835471,-500.0,0.00016575,2]
[350976162,1738261835480,-502.95956321,0.00016575,2]
[350976163,1738261835490,-500.0,0.00016575,2]
[350976164,1738261835499,-500.0,0.00016575,2]
[350976165,1738261835509,-500.0,0.00016575,2]
[350976166,1738261835519,-449.29923494,0.00016575,2]
[350976167,1738261835528,-395.7057902,0.00016575,2]
[350976168,1738261835537,-500.0,0.00016575,2]
[350976169,1738261835546,-500.0,0.00016575,2]
[350976170,1738261835555,-500.0,0.00016575,2]
[350976171,1738261835564,-500.0,0.00016575,2]
[350976172,1738261835573,-500.0,0.00016575,2]
[350976173,1738261835583,-500.0,0.00016575,2]
[350976174,1738261835592,-449.24958018,0.00016575,2]
[350976175,1738261835601,-447.34741827,0.00016575,2]
[350976176,1738261835610,-500.0,0.00016575,2]
[350976177,1738261835620,-500.0,0.00016575,2]
[350976178,1738261835630,-500.0,0.00016575,2]
[350976179,1738261835639,-500.0,0.00016575,2]
[350976180,1738261835649,-300.33361437,0.00016575,2]
[350976181,1738261835659,-500.0,0.00016575,2]
[350976182,1738261835671,-500.0,0.00016575,2]
[350976183,1738261835680,-500.0,0.00016575,2]
[350976184,1738261835689,-1126.76,0.00016575,2]
[350976185,1738261835699,-500.0,0.00016575,2]
[350976186,1738261835710,-7296.28,0.00016575,2]
[350976187,1738261835720,-500.0,0.00016575,2]
[350976188,1738261835731,-500.0,0.00016575,2]
[350976189,1738261835741,-500.0,0.00016575,2]
[350976190,1738261835752,-500.0,0.00016575,2]
[350976191,1738261835763,-500.0,0.00016575,2]
[350976192,1738261835772,-500.0,0.00016575,2]
[350976193,1738261835781,-537.84,0.00016575,2]
[350976194,1738261835790,-500.0,0.00016575,2]
[350976195,1738261835800,-523.34710049,0.00016575,2]
[350976196,1738261835809,-500.0,0.00016575,2]
[350976197,1738261835819,-500.0,0.00016575,2]
[350976198,1738261835828,-500.0,0.00016575,2]
[350976199,1738261835838,-500.0,0.00016575,2]
[350976200,1738261835847,-347.14,0.00016575,2]
[350976201,1738261835856,-500.0,0.00016575,2]
[350976202,1738261835866,-500.0,0.00016575,2]
[350976203,1738261835875,-500.0,0.00016575,2]
[350976204,1738261835884,-1197.65,0.00016575,2]
[350976205,1738261835893,-500.0,0.00016575,2]
[350976206,1738261835903,-500.0,0.00016575,2]
[350976207,1738261835912,-509.16817881,0.00016575,2]
[350976208,1738261835921,-500.0,0.00016575,2]
[350976209,1738261835931,-500.0,0.00016575,2]
[350976210,1738261835940,-500.0,0.00016575,2]
[350976211,1738261835949,-500.0,0.00016575,2]
[350976212,1738261835959,-341.89204792,0.00016575,2]
[350976213,1738261835968,-500.0,0.00016575,2]
[350976214,1738261835977,-500.0,0.00016575,2]
[350976215,1738261835986,-500.86391518,0.00016575,2]
[350976216,1738261835995,-500.0,0.00016575,2]
[350976217,1738261836004,-500.0,0.00016575,2]
[350976218,1738261836013,-500.0,0.00016575,2]
[350976219,1738261836021,-500.0,0.00016575,2]
[350976220,1738261836031,-500.0,0.00016575,2]
[350976221,1738261836040,-1102.75,0.00016575,2]
[350976222,1738261836049,-500.0,0.00016575,2]
[350976223,1738261836058,-2311.58,0.00016575,2]
[350976224,1738261836067,-500.0,0.00016575,2]
[350976225,1738261836077,-500.0,0.00016575,2]
[350976226,1738261836086,-500.0,0.00016575,2]
[350976227,1738261836096,-500.0,0.00016575,2]
[350976228,1738261836105,-500.0,0.00016575,2]
[350976229,1738261836115,-500.0,0.00016575,2]
[350976230,1738261836124,-500.0,0.00016575,2]
[350976231,1738261836133,-502.17441313,0.00016575,2]
[350976232,1738261836142,-292.88173604,0.00016575,2]
[350976233,1738261836151,-500.0,0.00016575,2]
[350976234,1738261836161,-535.2,0.00016575,2]
[350976235,1738261836170,-500.0,0.00016575,2]
[350976236,1738261836179,-500.0,0.00016575,2]
[350976237,1738261836188,-500.0,0.00016575,2]
[350976238,1738261836197,-539.03,0.00016575,2]
[350976239,1738261836207,-500.99911778,0.00016575,2]
[350976240,1738261836216,-500.0,0.00016575,2]
[350976241,1738261836225,-500.0,0.00016575,2]
[350976242,1738261836234,-500.0,0.00016575,2]
[350976243,1738261836244,-1483.68,0.00016575,2]
[350976244,1738261836253,-500.0,0.00016575,2]
[350976245,1738261836262,-500.0,0.00016575,2]
[350976246,1738261836271,-500.0,0.00016575,2]
[350976247,1738261836280,-501.64424515,0.00016575,2]
[350976248,1738261836289,-500.98,0.00016575,2]
[350976249,1738261836299,-500.0,0.00016575,2]
[350976250,1738261836308,-507.7260653,0.00016575,2]
[350976251,1738261836318,-500.0,0.00016575,2]
[350976252,1738261836327,-500.0,0.00016575,2]
[350976253,1738261836336,-507.81873159,0.00016575,2]
[350976254,1738261836346,-500.0,0.00016575,2]
[350976255,1738261836355,-500.0,0.00016575,2]
[350976256,1738261836364,-547.36,0.00016575,2]
[350976257,1738261836374,-500.0,0.00016575,2]
[350976258,1738261836383,-500.0,0.00016575,2]
[350976259,1738261836392,-500.0,0.00016708,2]
[350976260,1738261836402,-500.0,0.00016709,2]
[350976261,1738261836411,-500.0,0.00016709,2]
[350976262,1738261836423,-500.0,0.0001671,2]
[350976263,1738261836432,-2666.1,0.0001671,2]
[350976264,1738261836444,-500.0,0.0001671,2]
[350976265,1738261836455,-500.0,0.00016711,2]
[350976266,1738261836464,-500.0,0.00016711,2]
[350976267,1738261836474,-500.0,0.00016711,2]
[350976268,1738261836484,-500.0,0.00016711,2]
[350976269,1738261836493,-500.0,0.00016711,2]
[350976270,1738261836503,-500.0,0.00016711,2]
[350976271,1738261836512,-463.60310787,0.00016711,2]
[350976272,1738261836521,-500.0,0.00016712,2]
[350976273,1738261836531,-500.0,0.00016712,2]
[350976274,1738261836540,-500.0,0.00016712,2]
[350976275,1738261836549,-500.0,0.00016712,2]
[350976276,1738261836558,-500.0,0.00016712,2]
[350976277,1738261836568,-500.0,0.00016712,2]
[350976278,1738261836577,-500.0,0.00016712,2]
[350976279,1738261836586,-500.0,0.00016712,2]
[350976280,1738261836595,-500.0,0.00016712,2]
[350976281,1738261836605,-205.14338816,0.00016712,2]
[350976282,1738261836614,-500.0,0.00016712,2]
[350976283,1738261836623,-500.0,0.00016712,2]
[350976284,1738261836632,-1126.76,0.00016712,2]
[350976285,1738261836642,-500.0,0.00016712,2]
[350976286,1738261836651,-7296.28,0.00016712,2]
[350976287,1738261836660,-500.0,0.00016712,2]
[350976288,1738261836671,-500.0,0.00016712,2]
[350976289,1738261836680,-500.0,0.00016712,2]
[350976290,1738261836689,-500.0,0.00016712,2]
[350976291,1738261836698,-500.0,0.00016712,2]
[350976292,1738261836707,-537.84,0.00016712,2]
[350976293,1738261836716,-500.0,0.00016712,2]
[350976294,1738261836725,-500.0,0.00016712,2]
[350976295,1738261836735,-500.0,0.00016712,2]
[350976296,1738261836745,-500.0,0.00016712,2]
[350976297,1738261836754,-500.0,0.00016712,2]
[350976298,1738261836764,-1197.65,0.00016712,2]
[350976299,1738261836774,-500.0,0.00016712,2]
[350976300,1738261836783,-500.0,0.00016712,2]
[350976301,1738261836793,-500.0,0.00016712,2]
[350976302,1738261836802,-500.0,0.00016712,2]
[350976303,1738261836811,-151.0,0.00016712,2]
[350976304,1738261836821,-500.0,0.00016712,2]
[350976305,1738261836831,-151.0,0.00016712,2]
[350976306,1738261836841,-151.0,0.00016712,2]
[350976307,1738261836850,-1102.75,0.00016712,2]
[350976308,1738261836859,-2311.58,0.00016712,2]
[350976309,1738261836869,-500.0,0.00016712,2]
[350976310,1738261836878,-500.0,0.00016712,2]
[350976311,1738261836887,-500.0,0.00016712,2]
[350976312,1738261836896,-500.0,0.00016712,2]
[350976313,1738261836905,-500.0,0.00016712,2]
[350976314,1738261836915,-535.2,0.00016712,2]
[350976315,1738261836924,-500.0,0.00016712,2]
[350976316,1738261836933,-380.487517,0.00016712,2]
[350976317,1738261836943,-380.487517,0.00016712,2]
[350976318,1738261836952,-1131.124945,0.00016712,2]
[350976319,1738261836962,-500.0,0.00016712,2]
[350976320,1738261836972,-539.03,0.00016712,2]
[350976321,1738261837073,-1131.124945,0.00016712,2]
[350976322,1738261837083,-500.0,0.00016712,2]
[350976323,1738261837093,-500.0,0.00016712,2]
[350976324,1738261837103,-500.0,0.00016712,2]
[350976325,1738261837112,-1483.68,0.00016712,2]
[350976326,1738261837122,-500.0,0.00016712,2]
[350976327,1738261837131,-500.98,0.00016712,2]
[350976328,1738261837140,-500.0,0.00016712,2]
[350976329,1738261837150,-500.0,0.00016712,2]
[350976330,1738261837159,-500.0,0.00016712,2]
[350976331,1738261837169,-547.36,0.00016712,2]
[350976332,1738261837180,-500.0,0.00016712,2]
[350976333,1738261837189,-500.0,0.00016846,2]
[350976334,1738261837199,-2666.1,0.00016847,2]
[350976335,1738261837208,-500.0,0.00016848,2]
[350976336,1738261837218,-516.78,0.00016848,2]
[350976337,1738261837227,-500.0,0.00016849,2]
[350976338,1738261837245,-500.0,0.00016849,2]
[350976339,1738261837257,-500.0,0.00016849,2]
[350976340,1738261837267,-500.0,0.00016849,2]
[350976341,1738261837277,-500.0,0.00016849,2]
[350976342,1738261837287,-500.0,0.00016849,2]
[350976343,1738261837297,-500.0,0.00016849,2]
[350976344,1738261837307,-500.0,0.00016849,2]
[350976345,1738261837317,-500.0,0.00016849,2]
[350976346,1738261837327,-1126.76,0.00016849,2]
[350976347,1738261837338,-500.0,0.00016849,2]
[350976348,1738261837348,-7296.28,0.00016849,2]
[350976349,1738261837363,-500.0,0.00016849,2]
[350976350,1738261837374,-500.0,0.00016849,2]
[350976351,1738261837384,-500.0,0.00016849,2]
[350976352,1738261837394,-500.0,0.00016849,2]
[350976353,1738261837404,-537.84,0.00016849,2]
[350976354,1738261837414,-500.0,0.00016849,2]
[350976355,1738261837423,-500.0,0.00016849,2]
[350976356,1738261837433,-500.0,0.00016849,2]
[350976357,1738261837442,-1197.65,0.00016849,2]
[350976358,1738261837452,-500.0,0.00016849,2]
[350976359,1738261837462,-500.0,0.00016849,2]
[350976360,1738261837471,-474.22,0.00016849,2]
[350976361,1738261837481,-500.0,0.00016849,2]
[350976362,1738261837490,-500.0,0.00016849,2]
[350976363,1738261837499,-1102.75,0.00016849,2]
[350976364,1738261837509,-2311.58,0.00016849,2]
[350976365,1738261837518,-500.0,0.00016849,2]
[350976366,1738261837528,-205.71755924,0.00016849,2]
[350976367,1738261837537,-535.2,0.00016849,2]
[350976368,1738261837546,-500.0,0.00016849,2]
[350976369,1738261837556,-500.0,0.00016849,2]
[350976370,1738261837565,-539.03,0.00016849,2]
[350976371,1738261837574,-500.0,0.00016849,2]
[350976373,1738261837584,-1483.68,0.00016849,2]
[350976374,1738261837594,-500.0,0.00016849,2]
[350976375,1738261837604,-500.98,0.00016849,2]
[350976376,1738261837614,-500.0,0.00016849,2]
[350976377,1738261837624,-500.0,0.00016849,2]
[350976378,1738261837636,-547.36,0.00016849,2]
[350976379,1738261837647,-500.0,0.00016849,2]
[350976380,1738261837658,-2666.1,0.00016984,2]
[350976381,1738261837672,-151.0,0.00016984,2]
[350976382,1738261837682,-151.0,0.00016984,2]
[350976384,1738261837691,-21772.5307898,0.00016985,5]
[350976386,1738261837701,-500.0,0.00016985,2]
[350976387,1738261837712,-500.0,0.00016985,2]
[350976388,1738261837722,-151.0,0.00016985,2]
[350976389,1738261837731,-151.0,0.00016985,2]
[350976390,1738261837742,-380.487517,0.00016985,2]
[350976391,1738261837752,-380.487517,0.00016985,2]
[350976392,1738261837762,-500.0,0.00016986,2]
[350976393,1738261837772,-500.0,0.00016986,2]
[350976394,1738261837782,-500.0,0.00016986,2]
[350976395,1738261837791,-500.0,0.00016986,2]
[350976396,1738261837801,-326.20563562,0.00016986,2]
[350976397,1738261837810,-151.0,0.00016986,2]
[350976398,1738261837819,-151.0,0.00016986,2]
[350976399,1738261837829,-151.0,0.00016986,2]
[350976400,1738261837838,-322.523349,0.00016986,2]
[350976401,1738261837848,-322.523349,0.00016986,2]
[350976402,1738261837857,-151.0,0.00016986,2]
[350976403,1738261837867,-151.0,0.00016986,2]
[350976404,1738261837877,-477.75339526,0.00016986,2]
[350976405,1738261837887,-500.0,0.00016986,2]
[350976406,1738261837896,-151.0,0.00016986,2]
[350976407,1738261837905,-151.0,0.00016986,2]
[350976408,1738261837915,-500.0,0.00016986,2]
[350976409,1738261837924,-151.0,0.00016986,2]
[350976410,1738261837933,-151.0,0.00016986,2]
[350976411,1738261837942,-261.453373,0.00016986,2]
[350976412,1738261837952,-500.0,0.00016986,2]
[350976413,1738261837962,-1126.76,0.00016986,2]
[350976414,1738261837971,-500.0,0.00016986,2]
[350976415,1738261837981,-7296.28,0.00016986,2]
[350976416,1738261837990,-500.0,0.00016986,2]
[350976418,1738261837999,-500.0,0.00016986,2]
[350976420,1738261838008,-500.0,0.00016986,2]
[350976422,1738261838018,-537.84,0.00016986,2]
[350976424,1738261838027,-500.0,0.00016986,2]
[350976426,1738261838036,-151.0,0.00016986,2]
[350976428,1738261838046,-500.0,0.00016986,2]
[350976430,1738261838055,-500.0,0.00016986,2]
[350976432,1738261838064,-1197.65,0.00016986,2]
[350976434,1738261838074,-500.0,0.00016986,2]
[350976436,1738261838087,-500.0,0.00016986,2]
[350976438,1738261838096,-500.0,0.00016986,2]
[350976440,1738261838105,-500.0,0.00016986,2]
[350976442,1738261838115,-1102.75,0.00016986,2]
[350976444,1738261838124,-2311.58,0.00016986,2]
[350976446,1738261838134,-500.0,0.00016986,2]
[350976448,1738261838143,-535.2,0.00016986,2]
[350976450,1738261838152,-500.0,0.00016986,2]
[350976452,1738261838162,-1131.124945,0.00016986,2]
[350976453,1738261838171,-500.0,0.00016986,2]
[350976455,1738261838181,-539.03,0.00016986,2]
[350976457,1738261838191,-1131.124945,0.00016986,2]
[350976459,1738261838200,-1483.68,0.00016986,2]
[350976460,1738261838210,-500.0,0.00016986,2]
[350976461,1738261838219,-500.98,0.00016986,2]
[350976462,1738261838228,-500.0,0.00016986,2]
[350976463,1738261838238,-500.0,0.00016986,2]
[350976464,1738261838248,-547.36,0.00016986,2]
[350976465,1738261838257,-500.0,0.00016986,2]
[350976466,1738261838267,-1000.0,0.00017021,2]
[350976467,1738261838276,-151.0,0.00017121,2]
[350976468,1738261838296,-151.0,0.00017121,2]
[350976470,1738261838306,-151.0,0.00017121,2]
[350976472,1738261838315,-151.0,0.00017121,2]
[350976474,1738261838325,-151.0,0.00017121,2]
[350976476,1738261838339,-164.232884,0.00017121,2]
[350976478,1738261838359,-151.0,0.00017121,2]
[350976480,1738261838370,-151.0,0.00017121,2]
[350976482,1738261838380,-2666.1,0.00017121,2]
[350976483,1738261838390,-500.0,0.00017122,2]
[350976485,1738261838399,-500.0,0.00017123,2]
[350976486,1738261838408,-178.280748,0.00017123,2]
[350976487,1738261838418,-229.054483,0.00017123,2]
[350976488,1738261838428,-229.054483,0.00017123,2]
[350976489,1738261838437,-151.0,0.00017123,2]
[350976490,1738261838447,-500.0,0.00017123,2]
[350976491,1738261838456,-500.0,0.00017123,2]
[350976492,1738261838466,-500.0,0.00017123,2]
[350976493,1738261838475,-500.0,0.00017123,2]
[350976494,1738261838485,-500.0,0.00017123,2]
[350976496,1738261838495,-500.0,0.00017123,2]
[350976497,1738261838504,-1126.76,0.00017123,2]
[350976498,1738261838515,-500.0,0.00017123,2]
[350976499,1738261838524,-7296.28,0.00017123,2]
[350976500,1738261838534,-500.0,0.00017123,2]
[350976501,1738261838544,-500.0,0.00017123,2]
[350976502,1738261838553,-500.0,0.00017123,2]
[350976503,1738261838563,-152.28684,0.00017123,2]
[350976504,1738261838572,-537.84,0.00017123,2]
[350976505,1738261838581,-151.0,0.00017123,2]
[350976506,1738261838591,-500.0,0.00017123,2]
[350976507,1738261838600,-500.0,0.00017123,2]
[350976508,1738261838610,-500.0,0.00017123,2]
[350976509,1738261838619,-1197.65,0.00017123,2]
[350976510,1738261838628,-500.0,0.00017123,2]
[350976511,1738261838638,-500.0,0.00017123,2]
[350976512,1738261838647,-151.0,0.00017123,2]
[350976513,1738261838657,-151.0,0.00017123,2]
[350976514,1738261838668,-1102.75,0.00017123,2]
[350976515,1738261838678,-2311.58,0.00017123,2]
[350976516,1738261838688,-500.0,0.00017123,2]
[350976517,1738261838698,-535.2,0.00017123,2]
[350976518,1738261838709,-500.0,0.00017123,2]
[350976519,1738261838719,-380.487517,0.00017123,2]
[350976520,1738261838728,-380.487517,0.00017123,2]
[350976521,1738261838738,-500.0,0.00017123,2]
[350976522,1738261838749,-539.03,0.00017123,2]
[350976523,1738261838758,-1483.68,0.00017123,2]
[350976524,1738261838771,-500.0,0.00017123,2]
[350976525,1738261838789,-500.98,0.00017123,2]
[350976526,1738261838806,-500.0,0.00017123,2]
[350976527,1738261838816,-500.0,0.00017123,2]
[350976528,1738261838825,-547.36,0.00017123,2]
[350976529,1738261838835,-500.0,0.00017123,2]
[350976530,1738261838845,-151.0,0.00017179,2]
[350976531,1738261838855,-151.0,0.00017179,2]
[350976532,1738261838864,-151.0,0.00017179,2]
[350976533,1738261838874,-151.0,0.00017179,2]
[350976534,1738261838883,-247.026335,0.00017258,2]
[350976535,1738261838893,-153.016265,0.00017258,2]
[350976536,1738261838903,-322.523349,0.00017258,2]
[350976537,1738261838912,-322.523349,0.00017258,2]
[350976538,1738261838922,-152.675225,0.00017258,2]
[350976539,1738261838932,-151.0,0.00017258,2]
[350976540,1738261838942,-151.0,0.00017258,2]
[350976541,1738261838956,-151.0,0.00017258,2]
[350976542,1738261838966,-151.0,0.00017258,2]
[350976543,1738261838975,-151.0,0.00017258,2]
[350976544,1738261838986,-2666.1,0.00017258,2]
[350976545,1738261838995,-151.0,0.00017258,2]
[350976546,1738261839005,-1131.124945,0.00017258,2]
[350976547,1738261839015,-1131.124945,0.00017258,2]
[350976548,1738261839025,-500.0,0.00017259,2]
[350976549,1738261839035,-500.0,0.0001726,2]
[350976550,1738261839045,-500.0,0.0001726,2]
[350976551,1738261839054,-500.0,0.0001726,2]
[350976552,1738261839064,-500.0,0.0001726,2]
[350976553,1738261839073,-500.0,0.0001726,2]
[350976554,1738261839083,-236.08662093,0.0001726,2]
[350976555,1738261839092,-500.0,0.0001726,2]
[350976556,1738261839102,-1126.76,0.0001726,2]
[350976557,1738261839112,-500.0,0.0001726,2]
[350976558,1738261839122,-7296.28,0.0001726,2]
[350976559,1738261839133,-500.0,0.0001726,2]
[350976560,1738261839143,-500.0,0.0001726,2]
[350976561,1738261839154,-500.0,0.0001726,2]
[350976562,1738261839163,-537.84,0.0001726,2]
[350976563,1738261839173,-500.0,0.0001726,2]
[350976564,1738261839283,-500.0,0.0001726,2]
[350976565,1738261839294,-500.0,0.0001726,2]
[350976566,1738261839304,-1197.65,0.0001726,2]
[350976567,1738261839314,-500.0,0.0001726,2]
[350976568,1738261839323,-500.0,0.0001726,2]
[350976569,1738261839333,-1102.75,0.0001726,2]
[350976570,1738261839342,-2311.58,0.0001726,2]
[350976571,1738261839352,-500.0,0.0001726,2]
[350976572,1738261839361,-535.2,0.0001726,2]
[350976573,1738261839371,-500.0,0.0001726,2]
[350976574,1738261839380,-500.0,0.0001726,2]
[350976575,1738261839389,-539.03,0.0001726,2]
[350976576,1738261839398,-1483.68,0.0001726,2]
[350976577,1738261839408,-500.0,0.0001726,2]
[350976578,1738261839417,-500.98,0.0001726,2]
[350976579,1738261839427,-500.0,0.0001726,2]
[350976580,1738261839440,-500.0,0.0001726,2]
[350976581,1738261839461,-547.36,0.0001726,2]
[350976582,1738261839471,-500.0,0.0001726,2]
[350976583,1738261839481,-240.01350425,0.00017393,2]
[350976584,1738261839491,-500.0,0.00017394,2]
[350976585,1738261839501,-151.0,0.00017395,2]
[350976586,1738261839513,-151.0,0.00017395,2]
[350976587,1738261839523,-151.0,0.00017395,2]
[350976588,1738261839535,-151.0,0.00017395,2]
[350976589,1738261839545,-151.0,0.00017395,2]
[350976590,1738261839555,-151.0,0.00017395,2]
[350976591,1738261839565,-151.0,0.00017395,2]
[350976592,1738261839574,-2666.1,0.00017395,2]
[350976593,1738261839584,-151.0,0.00017395,2]
[350976594,1738261839594,-500.0,0.00017396,2]
[350976595,1738261839605,-151.0,0.00017397,2]
[350976596,1738261839615,-151.0,0.00017397,2]
[350976597,1738261839625,-287.20274,0.00017397,2]
[350976598,1738261839635,-409.17,0.00017397,2]
[350976599,1738261839646,-151.0,0.00017397,2]
[350976600,1738261839656,-500.0,0.00017397,2]
[350976601,1738261839669,-500.0,0.00017397,2]
[350976602,1738261839680,-500.0,0.00017397,2]
[350976603,1738261839690,-322.523349,0.00017397,2]
[350976604,1738261839700,-322.523349,0.00017397,2]
[350976605,1738261839711,-216.362527,0.00017397,2]
[350976606,1738261839721,-500.0,0.00017397,2]
[350976607,1738261839731,-151.0,0.00017397,2]
[350976608,1738261839740,-151.0,0.00017397,2]
[350976609,1738261839750,-188.291321,0.00017397,2]
[350976610,1738261839760,-151.0,0.00017397,2]
[350976611,1738261839771,-500.0,0.00017397,2]
[350976612,1738261839783,-1126.76,0.00017397,2]
[350976613,1738261839793,-500.0,0.00017397,2]
[350976614,1738261839803,-7296.28,0.00017397,2]
[350976615,1738261839813,-500.0,0.00017397,2]
[350976616,1738261839823,-500.0,0.00017397,2]
[350976617,1738261839834,-500.0,0.00017397,2]
[350976618,1738261839844,-537.84,0.00017397,2]
[350976619,1738261839854,-500.0,0.00017397,2]
[350976620,1738261839864,-151.0,0.00017397,2]
[350976621,1738261839874,-500.0,0.00017397,2]
[350976622,1738261839884,-500.0,0.00017397,2]
[350976623,1738261839894,-1197.65,0.00017397,2]
[350976624,1738261839904,-500.0,0.00017397,2]
[350976625,1738261839913,-500.0,0.00017397,2]
[350976626,1738261839923,-151.0,0.00017397,2]
[350976627,1738261839933,-151.0,0.00017397,2]
[350976628,1738261839944,-1102.75,0.00017397,2]